fUSD/lending_fUSD_20260529
["ID","MTS","AMOUNT","RATE_DAILY","PERIOD"]
[423287441,1780026671000,-418.0,0.00018384,2]
[423287445,1780026671000,-151.0,0.00019178,2]
[423287443,1780026671000,-151.0,0.00019178,2]
[423287444,1780026671000,-151.0,0.00019178,2]
[423287447,1780026671000,-418.0,0.00021384,2]
[423287442,1780026671000,-151.0,0.00019178,2]
[423287446,1780026671000,-150.0,0.0002,20]
[423287448,1780026671000,-201.2406153,0.0002288,2]
[423287451,1780026671000,-500.0,0.00028001,60]
[423287450,1780026671000,-500.0,0.00025809,7]
[423287456,1780026671000,-1950.35008706,0.00032876,7]
[423287455,1780026671000,-568.53506614,0.00032777,2]
[423287458,1780026671000,-10344.10627865,0.00032876,7]
[423287462,1780026671000,-609.21692186,0.00032876,7]
[423287459,1780026671000,-418.0,0.00027384,2]
[423287461,1780026671000,-151.0,0.00019178,2]
[423287463,1780026671000,-1178.07598998,0.00032876,7]
[423287454,1780026671000,-500.0,0.00031289,60]
[423287452,1780026671000,-500.0,0.00029645,60]
[423287457,1780026671000,-1094.0,0.00030794,30]
[423287453,1780026671000,-1094.0,0.00029794,30]
[423287460,1780026671000,-32.21473875,0.00032876,7]
[423287467,1780026672000,-151.0,0.00019178,2]
[423287469,1780026672000,-192.58002979,0.00031794,30]
[423287468,1780026672000,-418.0,0.00030384,2]
[423287464,1780026672000,-151.0,0.00019178,2]
[423287465,1780026672000,-113.10825996,0.00019178,2]
[423287466,1780026672000,-37.89174004,0.00019178,2]
[423287470,1780026753000,2500.0,0.00028082,120]
[423287471,1780026814000,2500.0,0.00028082,120]
[423287472,1780026841000,1000.0,0.00028082,120]
[423287485,1780026931000,2500.0,0.00028082,120]
[423287487,1780026959000,158.71,6.722e-05,2]
[423287488,1780026959000,158.71,7.333e-05,2]
[423287490,1780026959000,158.71,8.556e-05,2]
[423287489,1780026959000,158.71,7.944e-05,2]
[423287493,1780026960000,158.71,0.00010389,2]
[423287491,1780026960000,158.71,9.167e-05,2]
[423287494,1780026960000,158.71,0.00011,2]
[423287492,1780026960000,158.71,9.778e-05,2]
[423287504,1780026993000,2500.0,0.00028082,120]
[423287506,1780027021000,2500.0,0.00028082,120]
[423287507,1780027024000,2327.0,0.00026849,120]
[423287508,1780027063000,500.0,0.00028082,120]
[423287509,1780027081000,500.0,0.00028082,120]
[423287510,1780027093000,212.0,0.00028082,120]
[423287511,1780027129000,1118.15,0.00028082,120]
[423287513,1780027143000,1000.0,0.00028082,120]
[423287514,1780027150000,2000.0,0.00028082,120]
[423287516,1780027162000,2000.0,0.00028082,120]
[423287517,1780027169000,2000.0,0.00028082,120]
[423287518,1780027176000,2000.0,0.00028082,120]
[423287520,1780027182000,2000.0,0.00028082,120]
[423287521,1780027186000,2500.0,0.00028082,120]
[423287522,1780027192000,1600.0,0.00027407,120]
[423287523,1780027194000,1500.0,0.00028082,120]
[423287524,1780027200000,1500.0,0.00028082,120]
[423287525,1780027201000,2500.0,0.00028082,120]
[423287528,1780027207000,1500.0,0.00028082,120]
[423287529,1780027214000,1500.0,0.00028082,120]
[423287530,1780027222000,2000.0,0.00028082,120]
[423287531,1780027228000,2000.0,0.00028082,120]
[423287532,1780027231000,2500.0,0.00028082,120]
[423287533,1780027240000,2000.0,0.00028082,120]
[423287535,1780027247000,2000.0,0.00028082,120]
[423287536,1780027256000,2000.0,0.00028082,120]
[423287537,1780027263000,2000.0,0.00028082,120]
[423287539,1780027270000,2000.0,0.00028082,120]
[423287540,1780027282000,3000.0,0.00028082,120]
[423287541,1780027288000,3000.0,0.00028082,120]
[423287543,1780027295000,3000.0,0.00028082,120]
[423287544,1780027300000,3000.0,0.00028082,120]
[423287545,1780027312000,2500.0,0.00028082,120]
[423287546,1780027318000,2500.0,0.00028082,120]
[423287547,1780027326000,2500.0,0.00028082,120]
[423287548,1780027337000,3073.0,0.00028082,120]
[423287549,1780027351000,2500.0,0.00028082,120]
[423287551,1780027371000,2000.0,0.00027407,120]
[423287552,1780027411000,2500.0,0.00028082,120]
[423287555,1780027531000,2500.0,0.00028082,120]
[423287556,1780027561000,1000.0,0.00028082,120]
[423287557,1780027591000,526.0,0.00028082,120]
[423287558,1780027711000,1000.0,0.00028082,120]
[423287559,1780027742000,358.0,0.00028082,120]
[423287560,1780027749000,-245.0,0.00011582,2]
[423287561,1780027771000,580.0,0.00028082,120]
[423287563,1780027831000,2500.0,0.00028082,120]
[423287584,1780027832000,-500.0,0.00012876,2]
[423287585,1780027832000,-500.0,0.00012876,2]
[423287574,1780027832000,-158.71,0.00011611,2]
[423287575,1780027832000,-181.60771692,0.00011611,2]
[423287578,1780027832000,-300.0,0.00012755,2]
[423287576,1780027832000,-158.71,0.00012222,2]
[423287577,1780027832000,-150.0,0.0001249,2]
[423287580,1780027832000,-81.08596866,0.00012876,2]
[423287581,1780027832000,-418.91403134,0.00012876,2]
[423287582,1780027832000,-500.0,0.00012876,2]
[423287583,1780027832000,-500.0,0.00012876,2]
[423287579,1780027832000,-158.71,0.00012833,2]
[423287592,1780027833000,-500.0,0.00013696,2]
[423287587,1780027833000,-500.0,0.00012876,2]
[423287586,1780027833000,-500.0,0.00012876,2]
[423287588,1780027833000,-256.77540172,0.00012876,2]
[423287589,1780027833000,-158.71,0.00013445,2]
[423287591,1780027833000,-209.09056759,0.00013558,2]
[423287590,1780027833000,-1000.0,0.00013453,2]
[423287593,1780027833000,-500.0,0.00013696,2]
[423287597,1780027833000,-310.8,0.00013696,2]
[423287595,1780027833000,-280.16906761,0.00013696,2]
[423287596,1780027833000,-32.83431494,0.00013696,2]
[423287599,1780027833000,-492.36928228,0.00013696,2]
[423287598,1780027833000,-156.36568506,0.00013696,2]
[423287594,1780027833000,-219.83093239,0.00013696,2]
[423287600,1780027838000,232.08252256,0.00028082,120]
[423287601,1780027838000,-300.0,0.00012755,2]
[423287603,1780027838000,-373.38153342,0.00013698,2]
[423287605,1780027838000,-21.85203579,0.00013698,2]
[423287602,1780027838000,-126.61846658,0.00013698,2]
[423287608,1780027838000,-539.3848496,0.00013698,2]
[423287609,1780027838000,-500.0,0.00013698,2]
[423287606,1780027838000,-193.26889864,0.00013698,2]
[423287607,1780027838000,-38.85864513,0.00013698,2]
[423287610,1780027838000,-78.02296545,0.00013698,2]
[423287604,1780027838000,-478.14796421,0.00013698,2]
[423287701,1780027840000,-500.0,0.00013699,2]
[423287697,1780027840000,-500.0,0.00013699,2]
[423287698,1780027840000,-500.0,0.00013699,2]
[423287696,1780027840000,-500.0,0.00013699,2]
[423287695,1780027840000,-500.0,0.00013699,2]
[423287693,1780027840000,-500.0,0.00013699,2]
[423287692,1780027840000,-490.73820231,0.00013699,2]
[423287688,1780027840000,-303.1804614,0.00013698,2]
[423287689,1780027840000,-500.0,0.00013699,2]
[423287691,1780027840000,-500.0,0.00013699,2]
[423287690,1780027840000,-500.0,0.00013699,2]
[423287703,1780027840000,-500.0,0.00013699,2]
[423287699,1780027840000,-500.0,0.00013699,2]
[423287694,1780027840000,-500.0,0.00013699,2]
[423287700,1780027840000,-500.0,0.00013699,2]
[423287705,1780027840000,-500.0,0.00013699,2]
[423287715,1780027840000,-96.19782798,0.00014164,2]
[423287714,1780027840000,-203.80217202,0.00014164,2]
[423287713,1780027840000,-300.0,0.00014164,2]
[423287711,1780027840000,-300.0,0.00014164,2]
[423287712,1780027840000,-300.0,0.00014164,2]
[423287709,1780027840000,-250.0,0.00014,2]
[423287708,1780027840000,-307.0,0.00013992,2]
[423287707,1780027840000,-215.5484138,0.00013729,2]
[423287706,1780027840000,-500.0,0.00013699,2]
[423287704,1780027840000,-500.0,0.00013699,2]
[423287702,1780027840000,-500.0,0.00013699,2]
[423287710,1780027840000,-300.0,0.00014164,2]
[423287721,1780027841000,-500.0,0.00014999,2]
[423287717,1780027841000,-397.46113079,0.00014999,2]
[423287716,1780027841000,-500.0,0.00014999,2]
[423287718,1780027841000,-115.13132286,0.00014999,2]
[423287720,1780027841000,-500.0,0.00014999,2]
[423287719,1780027841000,-500.0,0.00014999,2]
[423287722,1780027841000,-397.32086209,0.00014999,2]
[423287725,1780027841000,-500.0,0.00014999,2]
[423287724,1780027841000,-500.0,0.00014999,2]
[423287723,1780027841000,-102.67913791,0.00014999,2]
[423287727,1780027841000,-500.0,0.00014999,2]
[423287726,1780027841000,-500.0,0.00014999,2]
[423287728,1780027841000,-500.0,0.00014999,2]
[423287729,1780027841000,-506.87,0.000159,2]
[423287730,1780027841000,-500.0,0.00015937,2]
[423287732,1780027841000,-300.0,0.00016,2]
[423287731,1780027841000,-500.0,0.00015937,2]
[423287734,1780027841000,-150.99,0.00016116,2]
[423287733,1780027841000,-299.99,0.00016116,4]
[423287736,1780027841000,-323.311332,0.00016116,2]
[423287735,1780027841000,-6709.25190332,0.00016116,2]
[423287753,1780027845000,-1243.73843092,0.00016116,2]
[423287759,1780027846000,-999.99,0.00016116,2]
[423287764,1780027846000,-193.80049851,0.00017237,2]
[423287766,1780027846000,-3638.0,0.00017563,2]
[423287768,1780027846000,-350.0,0.00018,2]
[423287767,1780027846000,-932.0,0.00017774,2]
[423287758,1780027846000,-906.97134986,0.00016116,2]
[423287763,1780027846000,-250.0,0.00017212,2]
[423287762,1780027846000,-459.60067686,0.00016907,2]
[423287761,1780027846000,-2685.6,0.00016438,2]
[423287754,1780027846000,-816.7169839,0.00016116,2]
[423287765,1780027846000,-6066.0,0.00017563,2]
[423287769,1780027846000,-2685.6,0.0001841,2]
[423287760,1780027846000,-500.0,0.00016415,2]
[423287773,1780027846000,-1687.0,0.0002,2]
[423287790,1780027846000,-1973.05,0.0002,2]
[423287786,1780027846000,-15384.75637868,0.0002,2]
[423287783,1780027846000,-1103.0,0.0002,2]
[423287780,1780027846000,-861.0,0.0002,2]
[423287779,1780027846000,-155.76379739,0.0002,20]
[423287770,1780027846000,-599.0,0.0002,2]
[423287777,1780027846000,-1364.0,0.0002,2]
[423287778,1780027846000,-363.0,0.0002,2]
[423287775,1780027846000,-488.0,0.0002,2]
[423287776,1780027846000,-2533.0,0.0002,2]
[423287774,1780027846000,-616.0,0.0002,2]
[423287771,1780027846000,-565.0,0.0002,2]
[423287798,1780027870000,1500.0,0.00028082,120]
[423287799,1780027886000,1500.0,0.00028082,120]
[423287800,1780027894000,2000.0,0.00028082,120]
[423287801,1780027900000,2000.0,0.00028082,120]
[423287802,1780027902000,681.2,0.00028,120]
[423287805,1780027906000,2000.0,0.00028082,120]
[423287806,1780027912000,2000.0,0.00028082,120]
[423287807,1780027925000,1500.0,0.00028082,120]
[423287808,1780027934000,1500.0,0.00028082,120]
[423287809,1780028011000,2500.0,0.00028082,120]
[423287810,1780028014000,613.0,0.00028082,120]
[423287816,1780028043000,1000.0,0.00028082,120]
[423287817,1780028071000,1000.0,0.00028082,120]
[423287820,1780028147000,320.0,0.00027125,120]
[423287819,1780028147000,320.0,0.00024865,120]
[423287822,1780028295000,2500.0,0.00028082,120]
[423287823,1780028311000,2500.0,0.00028082,120]
[423287824,1780028341000,2500.0,0.00028082,120]
[423287835,1780028448000,5000.0,0.00028082,120]
[423287840,1780028473000,4265.67,0.00028082,120]
[423287842,1780028494000,2500.0,0.00028082,120]
[423287850,1780028544000,88144.43036004,0.000107,2]
[423287853,1780028552000,2500.0,0.00028082,120]
[423287854,1780028555000,229.33649653,0.00012,120]
[423287858,1780028581000,2500.0,0.00028082,120]
[423287859,1780028618000,2500.0,0.00028082,120]
[423287861,1780028671000,2500.0,0.00028082,120]
[423287860,1780028671000,3033.09025955,0.00011611,6]
[423287862,1780028731000,2500.0,0.00028082,120]
[423287863,1780028769000,-150.0,0.00011263,2]
[423287864,1780028851000,2500.0,0.00028082,120]
[423287865,1780028881000,2500.0,0.00028082,120]
[423287866,1780028911000,2500.0,0.00028082,120]
[423287867,1780028923000,1408.0,0.00024865,120]
[423287868,1780028924000,1408.0,0.00027125,120]
[423287869,1780028941000,2500.0,0.00028082,120]
[423287870,1780028953000,1000.0,0.00028081,120]
[423287871,1780028967000,-209.09056759,0.00011605,2]
[423287872,1780028967000,-250.0,0.0001274,2]
[423287873,1780028967000,-170.89904583,0.00012754,2]
[423287874,1780028971000,1000.0,0.00028082,120]
[423287875,1780029002000,2500.0,0.00028082,120]
[423287877,1780029031000,2500.0,0.00028082,120]
[423287898,1780029032000,-150.0,0.00013638,2]
[423287908,1780029032000,-150.0,0.00013794,2]
[423287906,1780029032000,-150.0,0.00013787,2]
[423287905,1780029032000,-150.0,0.0001376,2]
[423287907,1780029032000,-150.0,0.00013787,2]
[423287904,1780029032000,-150.0,0.0001376,2]
[423287903,1780029032000,-150.0,0.00013726,2]
[423287902,1780029032000,-150.0,0.00013692,2]
[423287897,1780029032000,-150.0,0.00013624,2]
[423287901,1780029032000,-420.0,0.0001369,3]
[423287900,1780029032000,-150.0,0.00013658,2]
[423287899,1780029032000,-150.0,0.00013638,2]
[423287896,1780029032000,-150.0,0.00013624,2]
[423287919,1780029032000,-150.0,0.00013987,2]
[423287894,1780029032000,-150.0,0.00013556,2]
[423287895,1780029032000,-150.0,0.0001359,2]
[423287890,1780029032000,-150.0,0.00013488,2]
[423287887,1780029032000,-150.0,0.00013488,2]
[423287892,1780029032000,-150.0,0.00013488,2]
[423287891,1780029032000,-150.0,0.00013488,2]
[423287886,1780029032000,-150.0,0.00013488,2]
[423287889,1780029032000,-150.0,0.00013488,2]
[423287888,1780029032000,-150.0,0.00013488,2]
[423287885,1780029032000,-6504.08405302,0.00013196,2]
[423287883,1780029032000,-191.65153978,0.00012775,2]
[423287884,1780029032000,-872.15802478,0.00013,15]
[423287882,1780029032000,-215.5484138,0.00012766,2]
[423287909,1780029032000,-150.0,0.00013828,2]
[423287893,1780029032000,-150.0,0.00013522,2]
[423287912,1780029032000,-150.0,0.00013896,2]
[423287938,1780029032000,-150.0,0.00014101,2]
[423287911,1780029032000,-150.0,0.00013862,2]
[423287947,1780029032000,-150.0,0.00014237,2]
[423287946,1780029032000,-150.0,0.00014203,2]
[423287943,1780029032000,-400.0,0.000142,5]
[423287945,1780029032000,-200.0,0.000142,5]
[423287937,1780029032000,-150.0,0.00014087,2]
[423287944,1780029032000,-300.0,0.000142,5]
[423287942,1780029032000,-600.0,0.000142,5]
[423287941,1780029032000,-150.0,0.00014169,2]
[423287940,1780029032000,-150.0,0.00014169,2]
[423287939,1780029032000,-150.0,0.00014135,2]
[423287948,1780029032000,-150.0,0.00014237,2]
[423287935,1780029032000,-150.0,0.00014067,2]
[423287936,1780029032000,-150.0,0.00014087,2]
[423287910,1780029032000,-150.0,0.00013862,2]
[423287930,1780029032000,-300.0,0.00014031,2]
[423287928,1780029032000,-300.0,0.00014031,2]
[423287915,1780029032000,-150.0,0.0001393,2]
[423287916,1780029032000,-150.0,0.00013937,2]
[423287917,1780029032000,-150.0,0.00013937,2]
[423287918,1780029032000,-150.0,0.00013965,2]
[423287922,1780029032000,-250.0,0.00014,2]
[423287914,1780029032000,-150.0,0.00013896,2]
[423287924,1780029032000,-300.0,0.00014031,2]
[423287932,1780029032000,-427.81413007,0.00014031,2]
[423287926,1780029032000,-300.0,0.00014031,2]
[423287933,1780029032000,-150.0,0.00014033,2]
[423287934,1780029032000,-150.0,0.00014033,2]
[423287920,1780029032000,-150.0,0.00013999,2]
[423287990,1780029033000,-150.0,0.00014687,2]
[423287993,1780029033000,-300.0,0.000147,5]
[423287991,1780029033000,-600.0,0.000147,5]
[423287994,1780029033000,-200.0,0.000147,5]
[423287989,1780029033000,-150.0,0.00014687,2]
[423287985,1780029033000,-150.0,0.00014612,2]
[423287987,1780029033000,-150.0,0.00014646,2]
[423287984,1780029033000,-1000.0,0.000146,5]
[423287983,1780029033000,-1500.0,0.000146,5]
[423287980,1780029033000,-150.0,0.00014578,2]
[423287986,1780029033000,-150.0,0.00014612,2]
[423287988,1780029033000,-150.0,0.0001468,2]
[423288002,1780029033000,-200.0,0.000148,5]
[423287992,1780029033000,-400.0,0.000147,5]
[423287997,1780029033000,-150.0,0.00014748,2]
[423287996,1780029033000,-150.0,0.00014714,2]
[423287999,1780029033000,-600.0,0.000148,5]
[423288001,1780029033000,-300.0,0.000148,5]
[423287982,1780029033000,-2000.0,0.000146,5]
[423288003,1780029033000,-150.0,0.00014816,2]
[423288000,1780029033000,-400.0,0.000148,5]
[423288004,1780029033000,-150.0,0.00014836,2]
[423287998,1780029033000,-150.0,0.00014782,2]
[423288005,1780029033000,-150.0,0.00014836,2]
[423288006,1780029033000,-150.0,0.0001485,2]
[423288007,1780029033000,-150.0,0.0001485,2]
[423287995,1780029033000,-150.0,0.00014714,2]
[423287979,1780029033000,-150.0,0.00014578,2]
[423287973,1780029033000,-1200.0,0.000145,5]
[423287978,1780029033000,-150.0,0.00014544,2]
[423287950,1780029033000,-150.0,0.00014237,2]
[423287949,1780029033000,-150.0,0.00014237,2]
[423287951,1780029033000,-150.0,0.00014271,2]
[423287952,1780029033000,-1300.0,0.000143,5]
[423287953,1780029033000,-800.0,0.000143,5]
[423287957,1780029033000,-150.0,0.00014305,2]
[423287954,1780029033000,-600.0,0.000143,5]
[423287956,1780029033000,-150.0,0.00014305,2]
[423287955,1780029033000,-400.0,0.000143,5]
[423287959,1780029033000,-150.0,0.00014373,2]
[423287958,1780029033000,-150.0,0.00014339,2]
[423287960,1780029033000,-150.0,0.00014387,2]
[423287961,1780029033000,-150.0,0.00014387,2]
[423287962,1780029033000,-1900.0,0.000144,5]
[423287963,1780029033000,-1200.0,0.000144,5]
[423287964,1780029033000,-900.0,0.000144,5]
[423287966,1780029033000,-150.0,0.00014407,2]
[423287970,1780029033000,-150.0,0.00014487,2]
[423287968,1780029033000,-150.0,0.00014441,2]
[423287967,1780029033000,-150.0,0.00014441,2]
[423287969,1780029033000,-150.0,0.00014475,2]
[423287972,1780029033000,-1600.0,0.000145,5]
[423288008,1780029033000,-150.0,0.00014884,2]
[423287975,1780029033000,-150.0,0.00014509,2]
[423287974,1780029033000,-800.0,0.000145,5]
[423287976,1780029033000,-150.0,0.00014537,2]
[423287977,1780029033000,-150.0,0.00014537,2]
[423287981,1780029033000,-3300.0,0.000146,5]
[423288009,1780029033000,-1892.43525287,0.00014899,2]
[423287965,1780029033000,-600.0,0.000144,5]
[423288014,1780029033000,-400.0,0.000149,5]
[423288044,1780029033000,-500.0,0.00014999,2]
[423288045,1780029033000,-500.0,0.00014999,2]
[423288046,1780029033000,-500.0,0.00014999,2]
[423288050,1780029033000,-500.0,0.00014999,2]
[423288047,1780029033000,-500.0,0.00014999,2]
[423288054,1780029033000,-500.0,0.00014999,2]
[423288051,1780029033000,-500.0,0.00014999,2]
[423288049,1780029033000,-500.0,0.00014999,2]
[423288052,1780029033000,-500.0,0.00014999,2]
[423288048,1780029033000,-500.0,0.00014999,2]
[423288053,1780029033000,-500.0,0.00014999,2]
[423288055,1780029033000,-500.0,0.00014999,2]
[423288056,1780029033000,-500.0,0.00014999,2]
[423288057,1780029033000,-500.0,0.00014999,2]
[423288059,1780029033000,-500.0,0.00014999,2]
[423288058,1780029033000,-500.0,0.00014999,2]
[423288060,1780029033000,-500.0,0.00014999,2]
[423288061,1780029033000,-500.0,0.00014999,2]
[423288067,1780029033000,-500.0,0.00014999,2]
[423288066,1780029033000,-500.0,0.00014999,2]
[423288063,1780029033000,-500.0,0.00014999,2]
[423288062,1780029033000,-500.0,0.00014999,2]
[423288064,1780029033000,-500.0,0.00014999,2]
[423288065,1780029033000,-500.0,0.00014999,2]
[423288069,1780029033000,-500.0,0.00014999,2]
[423288068,1780029033000,-500.0,0.00014999,2]
[423288013,1780029033000,-600.0,0.000149,5]
[423288043,1780029033000,-500.0,0.00014999,2]
[423288041,1780029033000,-514.24822822,0.00014999,2]
[423287971,1780029033000,-2600.0,0.000145,5]
[423288035,1780029033000,-375.06971065,0.00014999,2]
[423288012,1780029033000,-1486.22298392,0.000149,2]
[423288036,1780029033000,-500.0,0.00014999,2]
[423288011,1780029033000,-943.80126388,0.000149,2]
[423288016,1780029033000,-331.31308937,0.000149,2]
[423288015,1780029033000,-5648.3733083,0.000149,2]
[423288010,1780029033000,-3441.56254713,0.00014899,2]
[423288017,1780029033000,-300.0,0.000149,5]
[423288018,1780029033000,-3332.96708909,0.000149,2]
[423288019,1780029033000,-2023.62045419,0.000149,2]
[423288023,1780029033000,-150.0,0.00014986,2]
[423288021,1780029033000,-150.0,0.00014918,2]
[423288024,1780029033000,-150.0,0.00014986,2]
[423288027,1780029033000,-150.0,0.00014986,2]
[423288026,1780029033000,-194.88830757,0.00014986,2]
[423288020,1780029033000,-200.0,0.000149,5]
[423288022,1780029033000,-150.0,0.00014952,2]
[423288042,1780029033000,-150.0,0.00014999,2]
[423288025,1780029033000,-163.2636897,0.00014986,2]
[423288034,1780029033000,-500.0,0.00014999,2]
[423288038,1780029033000,-500.0,0.00014999,2]
[423288039,1780029033000,-500.0,0.00014999,2]
[423288040,1780029033000,-500.0,0.00014999,2]
[423288037,1780029033000,-500.0,0.00014999,2]
[423288031,1780029033000,-500.0,0.00014999,2]
[423288032,1780029033000,-500.0,0.00014999,2]
[423288029,1780029033000,-3394.51,0.0001499,2]
[423288030,1780029033000,-3394.51,0.0001499,2]
[423288028,1780029033000,-158.65673112,0.00014986,2]
[423288033,1780029033000,-500.0,0.00014999,2]
[423288088,1780029034000,-500.0,0.00014999,2]
[423288094,1780029034000,-500.0,0.00014999,2]
[423288092,1780029034000,-500.0,0.00014999,2]
[423288091,1780029034000,-500.0,0.00014999,2]
[423288093,1780029034000,-500.0,0.00014999,2]
[423288095,1780029034000,-500.0,0.00014999,2]
[423288102,1780029034000,-500.0,0.00014999,2]
[423288098,1780029034000,-500.0,0.00014999,2]
[423288096,1780029034000,-500.0,0.00014999,2]
[423288099,1780029034000,-500.0,0.00014999,2]
[423288105,1780029034000,-500.0,0.00014999,2]
[423288100,1780029034000,-500.0,0.00014999,2]
[423288087,1780029034000,-500.0,0.00014999,2]
[423288097,1780029034000,-500.0,0.00014999,2]
[423288084,1780029034000,-500.0,0.00014999,2]
[423288071,1780029034000,-500.0,0.00014999,2]
[423288090,1780029034000,-500.0,0.00014999,2]
[423288070,1780029034000,-500.0,0.00014999,2]
[423288074,1780029034000,-500.0,0.00014999,2]
[423288072,1780029034000,-500.0,0.00014999,2]
[423288073,1780029034000,-500.0,0.00014999,2]
[423288075,1780029034000,-500.0,0.00014999,2]
[423288077,1780029034000,-500.0,0.00014999,2]
[423288079,1780029034000,-500.0,0.00014999,2]
[423288076,1780029034000,-500.0,0.00014999,2]
[423288078,1780029034000,-500.0,0.00014999,2]
[423288081,1780029034000,-500.0,0.00014999,2]
[423288080,1780029034000,-500.0,0.00014999,2]
[423288082,1780029034000,-500.0,0.00014999,2]
[423288085,1780029034000,-500.0,0.00014999,2]
[423288083,1780029034000,-500.0,0.00014999,2]
[423288089,1780029034000,-500.0,0.00014999,2]
[423288086,1780029034000,-500.0,0.00014999,2]
[423288103,1780029034000,-500.0,0.00014999,2]
[423288104,1780029034000,-500.0,0.00014999,2]
[423288107,1780029034000,-500.0,0.00014999,2]
[423288127,1780029034000,-379.10073076,0.00014999,2]
[423288125,1780029034000,-500.0,0.00014999,2]
[423288129,1780029034000,-500.0,0.00014999,2]
[423288131,1780029034000,-500.0,0.00014999,2]
[423288130,1780029034000,-415.9809058,0.00014999,2]
[423288132,1780029034000,-500.0,0.00014999,2]
[423288126,1780029034000,-500.0,0.00014999,2]
[423288134,1780029034000,-141201.50614581,0.00015,2]
[423288135,1780029034000,-149694.19786329,0.00015,2]
[423288136,1780029034000,-516.80872837,0.00015,2]
[423288137,1780029034000,-604.69855356,0.00015,2]
[423288139,1780029034000,-2295.0,0.00015,2]
[423288138,1780029034000,-1300.0,0.00015,2]
[423288101,1780029034000,-500.0,0.00014999,2]
[423288133,1780029034000,-58756.07494396,0.00015,2]
[423288128,1780029034000,-500.0,0.00014999,2]
[423288119,1780029034000,-500.0,0.00014999,2]
[423288121,1780029034000,-165.86041902,0.00014999,2]
[423288106,1780029034000,-500.0,0.00014999,2]
[423288116,1780029034000,-500.0,0.00014999,2]
[423288114,1780029034000,-500.0,0.00014999,2]
[423288109,1780029034000,-500.0,0.00014999,2]
[423288113,1780029034000,-500.0,0.00014999,2]
[423288110,1780029034000,-500.0,0.00014999,2]
[423288111,1780029034000,-500.0,0.00014999,2]
[423288115,1780029034000,-500.0,0.00014999,2]
[423288112,1780029034000,-500.0,0.00014999,2]
[423288108,1780029034000,-500.0,0.00014999,2]
[423288118,1780029034000,-500.0,0.00014999,2]
[423288120,1780029034000,-500.0,0.00014999,2]
[423288122,1780029034000,-500.0,0.00014999,2]
[423288124,1780029034000,-500.0,0.00014999,2]
[423288117,1780029034000,-500.0,0.00014999,2]
[423288123,1780029034000,-500.0,0.00014999,2]
[423288145,1780029039000,-160.0,0.00012911,2]
[423288146,1780029039000,-564.71469761,0.00015,2]
[423288150,1780029040000,-305.11934148,0.00015,2]
[423288147,1780029040000,-663.14813682,0.00015,2]
[423288151,1780029041000,-2193.198547,0.00015,2]
[423288152,1780029041000,-338.004,0.00015,2]